[Event "Titled Tuesday Blitz December 13 Late 2022"]
[White "Gutkin, Ilya"]
[Black "Gritsenko, Nikolai"]
[WhiteFideId "16203470"]
[BlackFideId "14112493"]
[WhiteElo "2265"]
[BlackElo "2389"]
[Result "1/2-1/2"]
[Round "08"]
[TimeControl "180+1"]
[Date "2022.12.13"]
[WhiteClock "0:00:15"]
[BlackClock "0:00:06"]

1. Nf3 {[%clk 0:03:00]}  c5 {[%clk 0:02:59]} 2. b3 {[%clk 0:03:00]}  b6 {[%clk 0:02:58]} 3. g3 {[%clk 0:03:00]}  Bb7 {[%clk 0:02:58]} 4. Bg2 {[%clk 0:03:00]}  Nf6 {[%clk 0:02:58]} 5. c4 {[%clk 0:03:00]}  e6 {[%clk 0:02:58]} 6. Bb2 {[%clk 0:03:00]}  Be7 {[%clk 0:02:58]} 7. O-O {[%clk 0:03:00]}  O-O {[%clk 0:02:58]} 8. d4 {[%clk 0:03:01]}  cxd4 {[%clk 0:02:58]} 9. Qxd4 {[%clk 0:03:01]}  d6 {[%clk 0:02:57]} 10. Nc3 {[%clk 0:03:00]}  a6 {[%clk 0:02:56]} 11. Rfd1 {[%clk 0:02:59]}  Nbd7 {[%clk 0:02:56]} 12. Ne1 {[%clk 0:02:50]}  Qc7 {[%clk 0:02:51]} 13. Ne4 {[%clk 0:02:44]}  Rfd8 {[%clk 0:02:38]} 14. Rac1 {[%clk 0:02:34]}  Nc5 {[%clk 0:02:26]} 15. Nxf6+ {[%clk 0:02:33]}  Bxf6 {[%clk 0:02:24]} 16. Qd2 {[%clk 0:02:33]}  Bxb2 {[%clk 0:02:05]} 17. Qxb2 {[%clk 0:02:34]}  a5 {[%clk 0:02:00]} 18. Bxb7 {[%clk 0:02:31]}  Qxb7 {[%clk 0:01:57]} 19. Rc2 {[%clk 0:02:28]}  Rd7 {[%clk 0:01:41]} 20. Nd3 {[%clk 0:02:28]}  Rad8 {[%clk 0:01:36]} 21. Qc3 {[%clk 0:02:15]}  h6 {[%clk 0:01:28]} 22. Nxc5 {[%clk 0:02:11]}  dxc5 {[%clk 0:01:24]} 23. Rcd2 {[%clk 0:02:11]}  Rxd2 {[%clk 0:01:12]} 24. Rxd2 {[%clk 0:02:12]}  Rxd2 {[%clk 0:01:09]} 25. Qxd2 {[%clk 0:02:13]}  Qc7 {[%clk 0:01:08]} 26. f3 {[%clk 0:02:06]}  Kf8 {[%clk 0:01:07]} 27. Kg2 {[%clk 0:02:04]}  Ke7 {[%clk 0:01:06]} 28. Qc3 {[%clk 0:01:53]}  f6 {[%clk 0:00:51]} 29. Qd3 {[%clk 0:01:39]}  Qe5 {[%clk 0:00:50]} 30. Kf2 {[%clk 0:01:28]}  f5 {[%clk 0:00:34]} 31. Qd2 {[%clk 0:01:15]}  g5 {[%clk 0:00:27]} 32. Kg2 {[%clk 0:01:06]}  Qd4 {[%clk 0:00:24]} 33. Qxd4 {[%clk 0:00:53]}  cxd4 {[%clk 0:00:23]} 34. f4 {[%clk 0:00:54]}  g4 {[%clk 0:00:20]} 35. Kf2 {[%clk 0:00:52]}  Kd6 {[%clk 0:00:19]} 36. e3 {[%clk 0:00:48]}  Kc5 {[%clk 0:00:19]} 37. Ke2 {[%clk 0:00:42]}  a4 {[%clk 0:00:12]} 38. Kd3 {[%clk 0:00:17]}  dxe3 {[%clk 0:00:10]} 39. Kxe3 {[%clk 0:00:17]}  axb3 {[%clk 0:00:10]} 40. axb3 {[%clk 0:00:18]}  h5 {[%clk 0:00:08]} 41. Kd3 {[%clk 0:00:18]}  Kb4 {[%clk 0:00:08]} 42. Kd4 {[%clk 0:00:17]}  Kxb3 {[%clk 0:00:08]} 43. c5 {[%clk 0:00:17]}  bxc5+ {[%clk 0:00:08]} 44. Kxc5 {[%clk 0:00:18]}  Kc3 {[%clk 0:00:07]} 45. Kd6 {[%clk 0:00:18]}  Kd3 {[%clk 0:00:07]} 46. Kxe6 {[%clk 0:00:18]}  Ke4 {[%clk 0:00:07]} 47. Kf6 {[%clk 0:00:18]}  h4 {[%clk 0:00:07]} 48. Kg5 {[%clk 0:00:17]}  h3 {[%clk 0:00:07]} 49. Kf6 {[%clk 0:00:17]}  Kf3 {[%clk 0:00:07]} 50. Kxf5 {[%clk 0:00:17]}  Kg2 {[%clk 0:00:08]} 51. Kxg4 {[%clk 0:00:18]}  Kxh2 {[%clk 0:00:08]} 52. f5 {[%clk 0:00:13]}  Kg2 {[%clk 0:00:08]} 53. f6 {[%clk 0:00:14]}  h2 {[%clk 0:00:09]} 54. f7 {[%clk 0:00:15]}  h1=Q {[%clk 0:00:08]} 55. f8=Q {[%clk 0:00:15]}  Qh3+ {[%clk 0:00:08]} 56. Kg5 {[%clk 0:00:15]}  Qxg3+ {[%clk 0:00:09]} 57. Kh6 {[%clk 0:00:15]}  Qh3+ {[%clk 0:00:08]} 58. Kg7 {[%clk 0:00:15]}  Qg4+ {[%clk 0:00:08]} 59. Kh8 {[%clk 0:00:16]}  Qh3+ {[%clk 0:00:08]} 60. Kg8 {[%clk 0:00:16]}  Qg3+ {[%clk 0:00:09]} 61. Qg7 {[%clk 0:00:17]}  Kh2 {[%clk 0:00:07]} 62. Qxg3+ {[%clk 0:00:15]}  Kxg3 {[%clk 0:00:06]} 1/2-1/2


[Site "https://www.chess.com"]

[Event "Titled Tuesday Blitz December 13 Late 2022"]
[White "Herman, Daniel"]
[Black "Sariego Figueredo, Wilfredo"]
[WhiteFideId "30935008"]
[BlackFideId "3500080"]
[WhiteElo "1897"]
[BlackElo "2309"]
[Result "1-0"]
[Round "08"]
[TimeControl "180+1"]
[Date "2022.12.14"]
[WhiteClock "0:02:33"]
[BlackClock "0:02:19"]

1. e4 {[%clk 0:03:00]}  c5 {[%clk 0:02:58]} 2. c3 {[%clk 0:02:59]}  d5 {[%clk 0:02:57]} 3. exd5 {[%clk 0:02:59]}  Qxd5 {[%clk 0:02:58]} 4. Nf3 {[%clk 0:02:59]}  e5 {[%clk 0:02:58]} 5. d4 {[%clk 0:02:54]}  exd4 {[%clk 0:02:51]} 6. cxd4 {[%clk 0:02:55]}  cxd4 {[%clk 0:02:51]} 7. Nxd4 {[%clk 0:02:45]}  Bc5 {[%clk 0:02:48]} 8. Be3 {[%clk 0:02:42]}  Nf6 {[%clk 0:02:37]} 9. Nc3 {[%clk 0:02:42]}  Nc6 {[%clk 0:02:25]} 10. Nxd5 {[%clk 0:02:41]}  Nxd5 {[%clk 0:02:22]} 11. Nxc6 {[%clk 0:02:34]}  Bxe3 {[%clk 0:02:19]} 12. Qxd5 {[%clk 0:02:33]} 1-0


[Site "https://www.chess.com"]

[Event "Titled Tuesday Blitz December 13 Late 2022"]
[White "Holt, Conrad"]
[Black "Rosen, Eric"]
[WhiteFideId "2034387"]
[BlackFideId "2032562"]
[WhiteElo "2592"]
[BlackElo "2362"]
[Result "1-0"]
[Round "08"]
[TimeControl "180+1"]
[Date "2022.12.13"]
[WhiteClock "0:00:08"]
[BlackClock "0:00:04"]

1. d4 {[%clk 0:03:00]}  d5 {[%clk 0:02:58]} 2. c4 {[%clk 0:03:01]}  e6 {[%clk 0:02:58]} 3. Nc3 {[%clk 0:03:01]}  Nf6 {[%clk 0:02:57]} 4. cxd5 {[%clk 0:03:00]}  exd5 {[%clk 0:02:57]} 5. Bg5 {[%clk 0:03:00]}  c6 {[%clk 0:02:55]} 6. e3 {[%clk 0:02:59]}  Bd6 {[%clk 0:02:54]} 7. Bd3 {[%clk 0:02:58]}  h6 {[%clk 0:02:54]} 8. Bh4 {[%clk 0:02:58]}  O-O {[%clk 0:02:55]} 9. Nge2 {[%clk 0:02:56]}  Re8 {[%clk 0:02:53]} 10. Qc2 {[%clk 0:02:55]}  a5 {[%clk 0:02:53]} 11. h3 {[%clk 0:02:50]}  Na6 {[%clk 0:02:53]} 12. a3 {[%clk 0:02:50]}  Nc7 {[%clk 0:02:53]} 13. O-O {[%clk 0:02:49]}  Ne6 {[%clk 0:02:54]} 14. Kh1 {[%clk 0:02:34]}  Ng5 {[%clk 0:02:47]} 15. Ng1 {[%clk 0:02:25]}  Qc7 {[%clk 0:02:22]} 16. f4 {[%clk 0:02:23]}  Nge4 {[%clk 0:02:20]} 17. Nf3 {[%clk 0:02:15]}  Bf5 {[%clk 0:02:11]} 18. Ne5 {[%clk 0:02:06]}  Bh7 {[%clk 0:01:46]} 19. Ne2 {[%clk 0:01:49]}  c5 {[%clk 0:01:30]} 20. Bxf6 {[%clk 0:01:39]}  gxf6 {[%clk 0:01:14]} 21. Ng4 {[%clk 0:01:32]}  Kg7 {[%clk 0:01:13]} 22. Rac1 {[%clk 0:01:15]}  c4 {[%clk 0:01:11]} 23. Bxe4 {[%clk 0:00:59]}  Bxe4 {[%clk 0:01:11]} 24. Qd2 {[%clk 0:00:56]}  h5 {[%clk 0:00:56]} 25. Nf2 {[%clk 0:00:54]}  b5 {[%clk 0:00:36]} 26. Nc3 {[%clk 0:00:52]}  Qb7 {[%clk 0:00:36]} 27. a4 {[%clk 0:00:24]}  Bb4 {[%clk 0:00:28]} 28. Nfxe4 {[%clk 0:00:16]}  Rxe4 {[%clk 0:00:26]} 29. axb5 {[%clk 0:00:16]}  Bxc3 {[%clk 0:00:25]} 30. Rxc3 {[%clk 0:00:14]}  Qxb5 {[%clk 0:00:24]} 31. Qe2 {[%clk 0:00:13]}  Rh8 {[%clk 0:00:15]} 32. Ra1 {[%clk 0:00:13]}  f5 {[%clk 0:00:07]} 33. b3 {[%clk 0:00:12]}  Qb4 {[%clk 0:00:04]} 34. Qc2 {[%clk 0:00:12]}  Qe7 {[%clk 0:00:03]} 35. bxc4 {[%clk 0:00:11]}  dxc4 {[%clk 0:00:04]} 36. Rxc4 {[%clk 0:00:10]}  Rxe3 {[%clk 0:00:04]} 37. Qxf5 {[%clk 0:00:10]}  Re1+ {[%clk 0:00:04]} 38. Rxe1 {[%clk 0:00:10]}  Qxe1+ {[%clk 0:00:05]} 39. Kh2 {[%clk 0:00:10]}  Rh6 {[%clk 0:00:04]} 40. Rc5 {[%clk 0:00:07]}  Rg6 {[%clk 0:00:03]} 41. Qe5+ {[%clk 0:00:08]}  Qxe5 {[%clk 0:00:02]} 42. fxe5 {[%clk 0:00:08]}  Ra6 {[%clk 0:00:02]} 43. d5 {[%clk 0:00:09]}  a4 {[%clk 0:00:02]} 44. d6 {[%clk 0:00:09]}  a3 {[%clk 0:00:02]} 45. d7 {[%clk 0:00:09]}  a2 {[%clk 0:00:02]} 46. d8=Q {[%clk 0:00:09]}  a1=Q {[%clk 0:00:03]} 47. Qg5+ {[%clk 0:00:07]}  Rg6 {[%clk 0:00:03]} 48. Qd2 {[%clk 0:00:07]}  Qa7 {[%clk 0:00:02]} 49. Rd5 {[%clk 0:00:06]}  Qe7 {[%clk 0:00:02]} 50. Qf4 {[%clk 0:00:06]}  h4 {[%clk 0:00:02]} 51. Rd4 {[%clk 0:00:06]}  Qe6 {[%clk 0:00:02]} 52. Qe3 {[%clk 0:00:05]}  Qf5 {[%clk 0:00:02]} 53. Rxh4 {[%clk 0:00:05]}  Rg5 {[%clk 0:00:02]} 54. Rf4 {[%clk 0:00:05]}  Qxe5 {[%clk 0:00:02]} 55. Qf3 {[%clk 0:00:05]}  Rf5 {[%clk 0:00:01]} 56. Qg3+ {[%clk 0:00:06]}  Rg5 {[%clk 0:00:02]} 57. Rg4 {[%clk 0:00:06]}  Qxg3+ {[%clk 0:00:01]} 58. Kxg3 {[%clk 0:00:07]}  Rg6 {[%clk 0:00:02]} 59. Rxg6+ {[%clk 0:00:06]}  fxg6 {[%clk 0:00:03]} 60. Kf4 {[%clk 0:00:06]}  Kf6 {[%clk 0:00:02]} 61. h4 {[%clk 0:00:06]}  Kf7 {[%clk 0:00:02]} 62. Kg5 {[%clk 0:00:06]}  Kg7 {[%clk 0:00:02]} 63. g3 {[%clk 0:00:05]}  Kf7 {[%clk 0:00:02]} 64. Kh6 {[%clk 0:00:05]}  Kf6 {[%clk 0:00:02]} 65. g4 {[%clk 0:00:05]}  g5 {[%clk 0:00:01]} 66. hxg5+ {[%clk 0:00:05]}  Kf7 {[%clk 0:00:02]} 67. Kh7 {[%clk 0:00:06]}  Kf8 {[%clk 0:00:02]} 68. g6 {[%clk 0:00:06]}  Ke7 {[%clk 0:00:02]} 69. g7 {[%clk 0:00:07]}  Kf6 {[%clk 0:00:03]} 70. g8=Q {[%clk 0:00:07]}  Ke5 {[%clk 0:00:04]} 71. g5 {[%clk 0:00:08]} 1-0


[Site "https://www.chess.com"]

[Event "Titled Tuesday Blitz December 13 Late 2022"]
[White "Janaszak, Dawid"]
[Black "Yuan, Qingyu"]
[WhiteFideId "1119206"]
[BlackFideId "8609772"]
[WhiteElo "2220"]
[BlackElo "2359"]
[Result "0-1"]
[Round "08"]
[TimeControl "180+1"]
[Date "2022.12.13"]
[WhiteClock "0:00:02"]
[BlackClock "0:00:06"]

1. d4 {[%clk 0:02:56]}  Nf6 {[%clk 0:02:59]} 2. Nf3 {[%clk 0:02:55]}  d5 {[%clk 0:02:59]} 3. Bf4 {[%clk 0:02:53]}  c5 {[%clk 0:02:59]} 4. e3 {[%clk 0:02:53]}  e6 {[%clk 0:02:59]} 5. c3 {[%clk 0:02:48]}  Bd6 {[%clk 0:02:59]} 6. Nbd2 {[%clk 0:02:48]}  O-O {[%clk 0:02:54]} 7. Bd3 {[%clk 0:02:47]}  Bxf4 {[%clk 0:02:54]} 8. exf4 {[%clk 0:02:47]}  b6 {[%clk 0:02:53]} 9. Qe2 {[%clk 0:02:45]}  Qd6 {[%clk 0:02:52]} 10. g3 {[%clk 0:02:43]}  a5 {[%clk 0:02:52]} 11. a4 {[%clk 0:02:36]}  Ba6 {[%clk 0:02:51]} 12. Bb5 {[%clk 0:02:36]}  Bxb5 {[%clk 0:02:48]} 13. axb5 {[%clk 0:02:36]}  Nbd7 {[%clk 0:02:45]} 14. Ne5 {[%clk 0:02:30]}  cxd4 {[%clk 0:02:40]} 15. cxd4 {[%clk 0:02:28]}  Qb4 {[%clk 0:02:30]} 16. Nc6 {[%clk 0:02:10]}  Qxb2 {[%clk 0:02:25]} 17. Rb1 {[%clk 0:02:06]}  Qc2 {[%clk 0:02:22]} 18. f3 {[%clk 0:01:58]}  Nb8 {[%clk 0:02:08]} 19. Ne5 {[%clk 0:01:50]}  Qc3 {[%clk 0:01:42]} 20. O-O {[%clk 0:01:48]}  Qxd4+ {[%clk 0:01:42]} 21. Kh1 {[%clk 0:01:49]}  Nbd7 {[%clk 0:01:31]} 22. Rfd1 {[%clk 0:01:48]}  Nxe5 {[%clk 0:01:24]} 23. fxe5 {[%clk 0:01:48]}  Nd7 {[%clk 0:01:24]} 24. f4 {[%clk 0:01:49]}  Rfc8 {[%clk 0:01:18]} 25. Nf3 {[%clk 0:01:43]}  Qc4 {[%clk 0:01:18]} 26. Qg2 {[%clk 0:01:32]}  h6 {[%clk 0:01:17]} 27. Nd4 {[%clk 0:01:29]}  Rc5 {[%clk 0:01:09]} 28. g4 {[%clk 0:01:26]}  Kh7 {[%clk 0:00:50]} 29. g5 {[%clk 0:01:25]}  h5 {[%clk 0:00:49]} 30. g6+ {[%clk 0:01:10]}  fxg6 {[%clk 0:00:50]} 31. Nxe6 {[%clk 0:01:11]}  Rcc8 {[%clk 0:00:34]} 32. Rxd5 {[%clk 0:00:56]}  Nf8 {[%clk 0:00:28]} 33. Ng5+ {[%clk 0:00:57]}  Kg8 {[%clk 0:00:24]} 34. e6 {[%clk 0:00:55]}  Ra7 {[%clk 0:00:22]} 35. Re1 {[%clk 0:00:44]}  Qb4 {[%clk 0:00:20]} 36. Rde5 {[%clk 0:00:40]}  Qe7 {[%clk 0:00:19]} 37. f5 {[%clk 0:00:39]}  a4 {[%clk 0:00:16]} 38. fxg6 {[%clk 0:00:38]}  a3 {[%clk 0:00:16]} 39. Qf3 {[%clk 0:00:31]}  Qf6 {[%clk 0:00:11]} 40. Rf5 {[%clk 0:00:28]}  Qxg6 {[%clk 0:00:10]} 41. e7 {[%clk 0:00:24]}  Rxe7 {[%clk 0:00:06]} 42. Rxe7 {[%clk 0:00:24]}  a2 {[%clk 0:00:05]} 43. Qb3+ {[%clk 0:00:22]}  Kh8 {[%clk 0:00:05]} 44. Nf7+ {[%clk 0:00:18]}  Kh7 {[%clk 0:00:05]} 45. Qxa2 {[%clk 0:00:10]}  Rc1+ {[%clk 0:00:05]} 46. Re1 {[%clk 0:00:02]}  Rxe1+ {[%clk 0:00:06]} 0-1


[Site "https://www.chess.com"]

[Event "Titled Tuesday Blitz December 13 Late 2022"]
[White "Joubert, Dantelle"]
[Black "Polster, Christian"]
[WhiteFideId "14310813"]
[BlackFideId "12965081"]
[WhiteElo "1507"]
[BlackElo "2195"]
[Result "0-1"]
[Round "08"]
[TimeControl "180+1"]
[Date "2022.12.14"]
[WhiteClock "0:00:06"]
[BlackClock "0:00:27"]

1. d4 {[%clk 0:02:51]}  d5 {[%clk 0:02:56]} 2. c4 {[%clk 0:02:50]}  e6 {[%clk 0:02:56]} 3. Nc3 {[%clk 0:02:49]}  c6 {[%clk 0:02:55]} 4. Nf3 {[%clk 0:02:45]}  dxc4 {[%clk 0:02:54]} 5. a4 {[%clk 0:02:43]}  Bb4 {[%clk 0:02:47]} 6. e3 {[%clk 0:02:42]}  b5 {[%clk 0:02:47]} 7. Be2 {[%clk 0:02:37]}  Bb7 {[%clk 0:02:42]} 8. O-O {[%clk 0:02:35]}  a6 {[%clk 0:02:41]} 9. Ne5 {[%clk 0:02:27]}  Nf6 {[%clk 0:02:39]} 10. Bf3 {[%clk 0:02:24]}  Qb6 {[%clk 0:02:27]} 11. e4 {[%clk 0:02:10]}  Nbd7 {[%clk 0:01:58]} 12. Be3 {[%clk 0:01:59]}  c5 {[%clk 0:01:46]} 13. Nxd7 {[%clk 0:01:46]}  Nxd7 {[%clk 0:01:42]} 14. d5 {[%clk 0:01:42]}  O-O {[%clk 0:01:31]} 15. dxe6 {[%clk 0:01:36]}  Ne5 {[%clk 0:01:31]} 16. e7 {[%clk 0:00:58]}  Nxf3+ {[%clk 0:01:20]} 17. Qxf3 {[%clk 0:00:51]}  Rfe8 {[%clk 0:01:20]} 18. axb5 {[%clk 0:00:39]}  axb5 {[%clk 0:01:02]} 19. Rxa8 {[%clk 0:00:30]}  Bxa8 {[%clk 0:01:03]} 20. Ra1 {[%clk 0:00:18]}  Bxc3 {[%clk 0:00:54]} 21. bxc3 {[%clk 0:00:18]}  Qc6 {[%clk 0:00:53]} 22. Qf5 {[%clk 0:00:15]}  Rxe7 {[%clk 0:00:40]} 23. Qxc5 {[%clk 0:00:10]}  Qxe4 {[%clk 0:00:31]} 24. Qc8+ {[%clk 0:00:07]}  Re8 {[%clk 0:00:30]} 25. Rxa8 {[%clk 0:00:06]}  Qb1+ {[%clk 0:00:27]} 0-1


[Site "https://www.chess.com"]

[Event "Titled Tuesday Blitz December 13 Late 2022"]
[White "Kanyamarala, Trisha"]
[Black "Musovic, Armin"]
[WhiteFideId "45004722"]
[BlackFideId "939935"]
[WhiteElo "2135"]
[BlackElo "2288"]
[Result "0-1"]
[Round "08"]
[TimeControl "180+1"]
[Date "2022.12.14"]
[WhiteClock "0:00:08"]
[BlackClock "0:01:20"]

1. d4 {[%clk 0:03:00]}  d5 {[%clk 0:02:57]} 2. c4 {[%clk 0:02:56]}  c5 {[%clk 0:02:57]} 3. cxd5 {[%clk 0:02:54]}  Nf6 {[%clk 0:02:56]} 4. dxc5 {[%clk 0:02:53]}  e6 {[%clk 0:02:56]} 5. d6 {[%clk 0:02:52]}  Qa5+ {[%clk 0:02:56]} 6. Nc3 {[%clk 0:02:50]}  Qxc5 {[%clk 0:02:56]} 7. Bf4 {[%clk 0:02:46]}  e5 {[%clk 0:02:55]} 8. Bg5 {[%clk 0:02:35]}  Bxd6 {[%clk 0:02:52]} 9. Rc1 {[%clk 0:02:34]}  Nc6 {[%clk 0:02:44]} 10. e4 {[%clk 0:02:20]}  O-O {[%clk 0:02:32]} 11. Nd5 {[%clk 0:01:55]}  Qa5+ {[%clk 0:02:14]} 12. Bd2 {[%clk 0:01:47]}  Qd8 {[%clk 0:02:14]} 13. Bg5 {[%clk 0:01:31]}  Qa5+ {[%clk 0:02:12]} 14. Bd2 {[%clk 0:01:28]}  Qd8 {[%clk 0:02:08]} 15. Bg5 {[%clk 0:01:27]}  Be6 {[%clk 0:01:57]} 16. Nxf6+ {[%clk 0:01:00]}  gxf6 {[%clk 0:01:56]} 17. Bd2 {[%clk 0:00:59]}  Bb4 {[%clk 0:01:51]} 18. a3 {[%clk 0:00:49]}  Bxd2+ {[%clk 0:01:48]} 19. Qxd2 {[%clk 0:00:50]}  Qb6 {[%clk 0:01:45]} 20. Nf3 {[%clk 0:00:44]}  Rfd8 {[%clk 0:01:43]} 21. Qe3 {[%clk 0:00:26]}  Qxb2 {[%clk 0:01:37]} 22. Be2 {[%clk 0:00:19]}  Nd4 {[%clk 0:01:33]} 23. Nxd4 {[%clk 0:00:15]}  exd4 {[%clk 0:01:34]} 24. Qd2 {[%clk 0:00:15]}  Qxa3 {[%clk 0:01:28]} 25. O-O {[%clk 0:00:14]}  d3 {[%clk 0:01:28]} 26. Bf3 {[%clk 0:00:14]}  Qd6 {[%clk 0:01:26]} 27. Rfd1 {[%clk 0:00:12]}  Kg7 {[%clk 0:01:23]} 28. h3 {[%clk 0:00:11]}  a5 {[%clk 0:01:22]} 29. Qe3 {[%clk 0:00:11]}  a4 {[%clk 0:01:23]} 30. Rc3 {[%clk 0:00:10]}  d2 {[%clk 0:01:22]} 31. Rc2 {[%clk 0:00:10]}  Qd3 {[%clk 0:01:20]} 32. Qxd3 {[%clk 0:00:07]}  Rxd3 {[%clk 0:01:21]} 33. Be2 {[%clk 0:00:07]}  Rd4 {[%clk 0:01:19]} 34. Rdxd2 {[%clk 0:00:07]}  Rxd2 {[%clk 0:01:19]} 35. Rxd2 {[%clk 0:00:08]}  a3 {[%clk 0:01:20]} 0-1


[Site "https://www.chess.com"]

[Event "Titled Tuesday Blitz December 13 Late 2022"]
[White "Kaplan, Avi Harrison"]
[Black "Bryant, Todd"]
[WhiteFideId "30934559"]
[BlackFideId "2031299"]
[WhiteElo "1983"]
[BlackElo "2341"]
[Result "1/2-1/2"]
[Round "08"]
[TimeControl "180+1"]
[Date "2022.12.14"]
[WhiteClock "0:00:23"]
[BlackClock "0:00:04"]

1. d4 {[%clk 0:03:00]}  Nf6 {[%clk 0:02:59]} 2. c4 {[%clk 0:02:48]}  g6 {[%clk 0:02:58]} 3. Nc3 {[%clk 0:02:31]}  Bg7 {[%clk 0:02:58]} 4. e4 {[%clk 0:02:31]}  d6 {[%clk 0:02:58]} 5. Nge2 {[%clk 0:02:31]}  O-O {[%clk 0:02:56]} 6. Ng3 {[%clk 0:02:32]}  e5 {[%clk 0:02:54]} 7. d5 {[%clk 0:02:31]}  Na6 {[%clk 0:02:53]} 8. h4 {[%clk 0:02:30]}  h5 {[%clk 0:02:54]} 9. Bg5 {[%clk 0:02:31]}  Qe8 {[%clk 0:02:50]} 10. Be2 {[%clk 0:02:31]}  Nh7 {[%clk 0:02:40]} 11. Be3 {[%clk 0:02:20]}  Nc5 {[%clk 0:02:24]} 12. Qd2 {[%clk 0:02:18]}  a5 {[%clk 0:02:20]} 13. Bh6 {[%clk 0:02:14]}  f5 {[%clk 0:02:01]} 14. exf5 {[%clk 0:02:10]}  Bxf5 {[%clk 0:01:58]} 15. O-O-O {[%clk 0:01:41]}  a4 {[%clk 0:01:48]} 16. Nxf5 {[%clk 0:01:13]}  Rxf5 {[%clk 0:01:40]} 17. g4 {[%clk 0:01:13]}  Rxf2 {[%clk 0:01:30]} 18. Bxg7 {[%clk 0:01:09]}  Kxg7 {[%clk 0:01:25]} 19. gxh5 {[%clk 0:01:09]}  Kh8 {[%clk 0:00:39]} 20. hxg6 {[%clk 0:01:01]}  Qxg6 {[%clk 0:00:38]} 21. Rhg1 {[%clk 0:01:01]}  Qf5 {[%clk 0:00:31]} 22. Qh6 {[%clk 0:00:59]}  Qf4+ {[%clk 0:00:24]} 23. Qxf4 {[%clk 0:00:58]}  Rxf4 {[%clk 0:00:25]} 24. Nb5 {[%clk 0:00:56]}  Re4 {[%clk 0:00:18]} 25. Rde1 {[%clk 0:00:39]}  Rxh4 {[%clk 0:00:18]} 26. Nxc7 {[%clk 0:00:38]}  Rc8 {[%clk 0:00:19]} 27. Nb5 {[%clk 0:00:36]}  e4 {[%clk 0:00:16]} 28. Nxd6 {[%clk 0:00:36]}  Rc7 {[%clk 0:00:13]} 29. Rg6 {[%clk 0:00:27]}  Rh2 {[%clk 0:00:09]} 30. Reg1 {[%clk 0:00:27]}  Nf6 {[%clk 0:00:06]} 31. Rxf6 {[%clk 0:00:24]}  Rxe2 {[%clk 0:00:04]} 32. Rh6+ {[%clk 0:00:23]} 1/2-1/2


[Site "https://www.chess.com"]

[Event "Titled Tuesday Blitz December 13 Late 2022"]
[White "Kleiman, Jake"]
[Black "Pasti, Aron"]
[WhiteFideId "2020041"]
[BlackFideId "785857"]
[WhiteElo "2602"]
[BlackElo "2250"]
[Result "1-0"]
[Round "08"]
[TimeControl "180+1"]
[Date "2022.12.14"]
[WhiteClock "0:02:24"]
[BlackClock "0:01:40"]

1. Nf3 {[%clk 0:03:00]}  d5 {[%clk 0:02:57]} 2. g3 {[%clk 0:03:01]}  Nf6 {[%clk 0:02:56]} 3. Bg2 {[%clk 0:03:02]}  c6 {[%clk 0:02:51]} 4. O-O {[%clk 0:03:03]}  Bg4 {[%clk 0:02:50]} 5. d3 {[%clk 0:03:03]}  Nbd7 {[%clk 0:02:50]} 6. Nbd2 {[%clk 0:03:04]}  e5 {[%clk 0:02:49]} 7. e4 {[%clk 0:03:04]}  Bd6 {[%clk 0:02:48]} 8. Qe1 {[%clk 0:03:03]}  O-O {[%clk 0:02:47]} 9. h3 {[%clk 0:03:04]}  Bh5 {[%clk 0:02:45]} 10. Nh4 {[%clk 0:03:03]}  Bg6 {[%clk 0:02:40]} 11. Nxg6 {[%clk 0:03:03]}  hxg6 {[%clk 0:02:40]} 12. Nf3 {[%clk 0:02:58]}  Re8 {[%clk 0:02:39]} 13. Qe2 {[%clk 0:02:57]}  Nc5 {[%clk 0:02:36]} 14. Ng5 {[%clk 0:02:48]}  Qb6 {[%clk 0:02:32]} 15. c3 {[%clk 0:02:44]}  Qa6 {[%clk 0:02:32]} 16. Rd1 {[%clk 0:02:37]}  dxe4 {[%clk 0:02:30]} 17. Nxe4 {[%clk 0:02:37]}  Nfxe4 {[%clk 0:02:28]} 18. Bxe4 {[%clk 0:02:38]}  f5 {[%clk 0:02:28]} 19. Bf3 {[%clk 0:02:32]}  Rad8 {[%clk 0:02:16]} 20. Bg5 {[%clk 0:02:26]}  Rd7 {[%clk 0:01:56]} 21. d4 {[%clk 0:02:24]}  Qxe2 {[%clk 0:01:53]} 22. Bxe2 {[%clk 0:02:25]}  exd4 {[%clk 0:01:51]} 23. Bc4+ {[%clk 0:02:25]}  Kh7 {[%clk 0:01:47]} 24. Rxd4 {[%clk 0:02:25]}  Bc7 {[%clk 0:01:40]} 25. Rh4# {[%clk 0:02:24]} 1-0


[Site "https://www.chess.com"]